[Event "CZE-ch 2020"]
[Site "Pilsen"]
[Date "2020.08.29"]
[Round "7.30"]
[White "Frank, Adam"]
[Black "Flajsman, Pavel"]
[Result "0-1"]
[ECO "B67"]
[WhiteElo "2219"]
[BlackElo "2184"]
[Annotator "NA"]
[PlyCount "64"]
[EventDate "2020.08.23"]
[EventType "swiss"]
[EventCountry "CZE"]
[SourceTitle "playchess.com"]
[Source "ChessBase"]
[SourceQuality "1"]
[TimeControl "40/5400+30:1800+30"]

1. e4 {[%emt 0:00:00]} c5 {[%emt 0:00:00]} 2. Nf3 {[%emt 0:00:00]} Nc6 {[%emt 0:00:03]} 3. d4 {[%emt 0:00:00]} cxd4 {[%emt 0:00:03]} 4. Nxd4 {[%emt 0:00:00]} Nf6 {[%emt 0:00:06]} 5. Nc3 {[%emt 0:00:00]} d6 {[%emt 0:00:15]} 6. Bg5 {[%emt 0:00:00]} e6 {[%emt 0:00:20]} 7. Qd2 {[%emt 0:00:02]} a6 {[%emt 0:00:15]} 8. O-O-O {[%emt 0:00:05]} Bd7 {[%emt 0:00:03]} 9. f3 {[%emt 0:00:59]} Nxd4 {[%emt 0:01:13]} 10. Qxd4 {[%emt 0:00:06]} Be7 {[%emt 0:00:03]} 11. Qd2 {[%emt 0:05:16]} b5 {[%emt 0:12:26]} 12. Bd3 {[%emt 0:05:15]} Qc7 {[%emt 0:06:47]} 13. Kb1 {[%emt 0:07:54]} b4 {[%emt 0:07:36]} 14. Ne2 $11 {[%emt 0:00:09]} a5 {[%emt 0:00:53]} 15. Rhe1 {[%emt 0:17:43]} Rb8 {[%emt 0:13:47]} 16. Ng3 {[%emt 0:10:49]} a4 {[%emt 0:28:14]} 17. Bxf6 {[%emt 0:01:23]} Bxf6 {[%emt 0:01:49]} 18. Nh5 {[%emt 0:00:08]} Bc3 {[%emt 0:14:03]} 19. Qg5 {[%emt 0:00:07]} h6 {[%emt 0:00:23]} 20. Qg3 {[%emt 0:05:20]} Bxe1 {[%emt 0:01:03]} 21. Rxe1 {[%emt 0:03:21]} g6 {[%emt 0:00:17]} 22. Nf6+ {[%emt 0:03:09]} Ke7 {[%emt 0:05:26]} 23. e5 {[%emt 0:00:15]} d5 {[%emt 0:01:32]} 24. f4 {[%emt 0:01:05]} Bb5 {[%emt 0:02:01]} 25. Bxb5 {[%emt 0:23:21]} Rxb5 {[%emt 0:00:00]} 26. f5 {[%emt 0:00:01]} Rc8 {[%emt 0:02:10]} 27. Rc1 {[%emt 0:00:49]} exf5 {[%emt 0:00:46]} 28. Qh4 {[%emt 0:00:18]} g5 {[%emt 0:00:33]} 29. Qxh6 {[%emt 0:00:02]} Qxe5 {[%emt 0:00:59]} 30. Qxg5 {[%emt 0:00:05]} Kd6 {[%emt 0:00:42]} 31. Qg7 {[%emt 0:01:41]} a3 {[%emt 0:00:41]} 32. c3 {[%emt 0:00:04]} bxc3 {[%emt 0:00:30]} 0-1

[Event "CZE-ch 2020"]
[Site "Pilsen"]
[Date "2020.08.29"]
[Round "7.31"]
[White "Joukl, Zdenek"]
[Black "Ludvik, Tomas"]
[Result "1/2-1/2"]
[ECO "D02"]
[WhiteElo "2062"]
[BlackElo "2202"]
[Annotator "NA"]
[PlyCount "71"]
[EventDate "2020.08.23"]
[EventType "swiss"]
[EventCountry "CZE"]
[SourceTitle "playchess.com"]
[Source "ChessBase"]
[SourceQuality "1"]
[TimeControl "40/5400+30:1800+30"]

1. d4 {[%emt 0:00:00]} d5 {[%emt 0:00:00]} 2. Nf3 {[%emt 0:00:19]} Nf6 {[%emt 0:00:00]} 3. Bf4 {[%emt 0:00:32]} c5 {[%emt 0:00:00]} 4. e3 {[%emt 0:00:35]} Nc6 {[%emt 0:00:02]} 5. c3 {[%emt 0:02:25]} Qb6 {[%emt 0:00:57]} 6. b3 {[%emt 0:00:59]} Bf5 {[%emt 0:04:30]} 7. Be2 {[%emt 0:01:41]} e6 {[%emt 0:00:24]} 8. Ne5 {[%emt 0:07:06]} cxd4 {[%emt 0:03:57]} 9. exd4 {[%emt 0:07:06]} Rc8 {[%emt 0:05:20]} 10. Bd3 {[%emt 0:11:08]} Bxd3 {[%emt 0:04:04]} 11. Qxd3 {[%emt 0:02:46]} Be7 {[%emt 0:02:06]} 12. O-O {[%emt 0:00:57]} O-O {[%emt 0:05:33]} 13. Nd2 $11 {[%emt 0:01:09]} Nxe5 {[%emt 0:04:31]} 14. Bxe5 {[%emt 0:06:17]} Qa5 {[%emt 0:08:25]} 15. Rfc1 {[%emt 0:04:11]} Rfd8 {[%emt 0:01:44]} 16. a4 {[%emt 0:08:32]} Qa6 {[%emt 0:16:10]} 17. Qxa6 {[%emt 0:02:36]} bxa6 {[%emt 0:00:01]} 18. Kf1 {[%emt 0:00:28]} Rc6 {[%emt 0:01:33]} 19. Ke2 {[%emt 0:08:19]} Rdc8 {[%emt 0:00:35]} 20. c4 {[%emt 0:00:40]} Nd7 {[%emt 0:02:27]} 21. Kd1 {[%emt 0:05:17]} f6 {[%emt 0:10:08]} 22. Bg3 {[%emt 0:02:38]} Bb4 {[%emt 0:04:16]} 23. cxd5 {[%emt 0:01:52]} exd5 {[%emt 0:00:45]} 24. Rxc6 {[%emt 0:00:57]} Rxc6 {[%emt 0:00:02]} 25. Rc1 {[%emt 0:01:47]} Rxc1+ {[%emt 0:00:46]} 26. Kxc1 {[%emt 0:00:03]} Kf7 {[%emt 0:00:49]} 27. Kc2 {[%emt 0:01:48]} Ke6 {[%emt 0:01:24]} 28. Nf1 {[%emt 0:01:11]} f5 {[%emt 0:05:50]} 29. Bf4 {[%emt 0:02:22]} Ba5 {[%emt 0:01:57]} 30. Kd3 {[%emt 0:00:57]} Bd8 {[%emt 0:04:31]} 31. Bd2 {[%emt 0:02:13]} Bf6 {[%emt 0:01:10]} 32. Ne3 {[%emt 0:02:21]} Nb8 {[%emt 0:02:06]} 33. Bb4 {[%emt 0:04:17]} Nc6 {[%emt 0:00:16]} 34. Bc5 {[%emt 0:00:23]} a5 {[%emt 0:00:48]} 35. f3 {[%emt 0:01:43]} a6 {[%emt 0:01:09]} 36. g3 {[%emt 0:00:47]} 1/2-1/2

[Event "CZE-ch 2020"]
[Site "Pilsen"]
[Date "2020.08.29"]
[Round "7.32"]
[White "Placer, Sebastian"]
[Black "Laurincova, Kristyna"]
[Result "0-1"]
[ECO "D83"]
[WhiteElo "2097"]
[BlackElo "2008"]
[Annotator "ChessBase"]
[PlyCount "100"]
[EventDate "2020.08.23"]
[EventType "swiss"]
[EventCountry "CZE"]
[SourceTitle "playchess.com"]
[Source "ChessBase"]
[SourceQuality "1"]
[TimeControl "40/5400+30:1800+30"]

1. d4 {[%emt 0:00:00]} Nf6 {[%emt 0:00:00]} 2. c4 {[%emt 0:00:00]} g6 {[%emt 0:00:00]} 3. Nc3 {[%emt 0:00:19]} d5 {[%emt 0:00:00]} 4. Bf4 {[%emt 0:00:36]} Bg7 {[%emt 0:00:31]} 5. e3 {[%emt 0:00:28]} O-O {[%emt 0:01:06]} 6. Rc1 {[%emt 0:00:34]} dxc4 {[%emt 0:04:35]} 7. Bxc4 {[%emt 0:00:45]} c5 {[%emt 0:00:45]} 8. dxc5 {[%emt 0:04:32]} Qa5 {[%emt 0:00:53]} 9. Nge2 {[%emt 0:01:00]} Qxc5 {[%emt 0:05:47]} 10. Bb3 {[%emt 0:02:27]} Nc6 {[%emt 0:02:26]} 11. O-O {[%emt 0:04:16]} Qa5 {[%emt 0:11:10]} 12. Qc2 {[%emt 0:14:23]} Bd7 {[%emt 0:06:47]} 13. Rfd1 {[%emt 0:04:44]} Rac8 {[%emt 0:06:16]} 14. Qb1 {[%emt 0:04:56]} Qb4 {[%emt 0:17:38]} 15. e4 {[%emt 0:16:55]} Na5 {[%emt 0:18:39]} 16. Bc2 {[%emt 0:13:13]} Be6 {[%emt 0:05:09]} 17. a3 {[%emt 0:03:36]} Qb6 {[%emt 0:01:12]} 18. Be3 {[%emt 0:13:33]} Qa6 {[%emt 0:01:59]} 19. b3 {[%emt 0:01:57]} b6 {[%emt 0:02:59]} 20. h3 {[%emt 0:02:23]} Qb7 {[%emt 0:01:53]} 21. Bd4 {[%emt 0:00:57]} Bh6 {[%emt 0:05:34]} 22. f4 {[%emt 0:01:29]} Nh5 {[%emt 0:02:01]} 23. Rf1 {[%emt 0:01:14]} Rfd8 {[%emt 0:01:13]} 24. Be3 {[%emt 0:00:45]} Ng3 {[%emt 0:02:11]} 25. Rf3 {[%emt 0:00:32]} Nxe2+ {[%emt 0:00:18]} 26. Nxe2 {[%emt 0:00:02]} Bg7 {[%emt 0:01:23]} 27. Rf2 {[%emt 0:02:49]} Rc7 {[%emt 0:00:30]} 28. f5 {[%emt 0:00:28]} Bd7 {[%emt 0:00:22]} 29. Bf4 {[%emt 0:00:07]} Rcc8 {[%emt 0:00:21]} 30. Bg5 {[%emt 0:01:45]} Bb5 {[%emt 0:00:38]} 31. fxg6 {[%emt 0:01:50]} hxg6 {[%emt 0:00:17]} 32. Be3 {[%emt 0:00:31]} Bxe2 {[%emt 0:00:37]} 33. Rxe2 {[%emt 0:00:01]} Rc3 {[%emt 0:00:41]} 34. Bd2 {[%emt 0:00:51]} Qa6 {[%emt 0:00:35]} 35. Bxc3 {[%emt 0:01:08]} Qxe2 {[%emt 0:00:16]} 36. Re1 {[%emt 0:00:14]} Qb5 {[%emt 0:00:39]} 37. Bxg7 {[%emt 0:00:39]} Kxg7 {[%emt 0:00:26]} 38. Qb2+ {[%emt 0:00:27]} e5 {[%emt 0:00:40]} 39. b4 {[%emt 0:01:53]} Nc6 {[%emt 0:00:22]} 40. Bb3 {[%emt 0:00:54]} Nd4 {[%emt 0:00:36]} 41. Rf1 {[%emt 0:04:28]} f6 {[%emt 0:03:55]} 42. Rf2 {[%emt 0:00:44]} Qd3 {[%emt 0:03:22]} 43. Bd5 {[%emt 0:02:10]} Rc8 {[%emt 0:00:56]} 44. Rd2 {[%emt 0:02:24]} Qe3+ {[%emt 0:04:26]} 45. Kh2 {[%emt 0:00:39]} Rc3 {[%emt 0:00:24]} 46. a4 {[%emt 0:00:43]} Qg3+ {[%emt 0:00:09]} 47. Kh1 {[%emt 0:00:36]} Re3 {[%emt 0:00:38]} 48. Rd1 {[%emt 0:00:32]} Nf3 {[%emt 0:01:36]} 49. gxf3 {[%emt 0:00:53]} Qxf3+ {[%emt 0:00:10]} 50. Qg2 {[%emt 0:00:13]} Qxd1+ {[%emt 0:00:05]} 0-1

[Event "CZE-ch 2020"]
[Site "Pilsen"]
[Date "2020.08.29"]
[Round "7.33"]
[White "Nemcova, Karin"]
[Black "Vojta, Jakub"]
[Result "0-1"]
[ECO "B33"]
[WhiteElo "1983"]
[BlackElo "2093"]
[Annotator "NA"]
[PlyCount "68"]
[EventDate "2020.08.23"]
[EventType "swiss"]
[EventCountry "CZE"]
[SourceTitle "playchess.com"]
[Source "ChessBase"]
[SourceQuality "1"]
[TimeControl "40/5400+30:1800+30"]

1. e4 {[%emt 0:00:00]} c5 {[%emt 0:00:00]} 2. Nf3 {[%emt 0:00:00]} Nc6 {[%emt 0:00:00]} 3. d4 {[%emt 0:00:00]} cxd4 {[%emt 0:00:00]} 4. Nxd4 {[%emt 0:00:00]} Nf6 {[%emt 0:00:00]} 5. Nc3 {[%emt 0:00:00]} e5 {[%emt 0:00:00]} 6. Ndb5 {[%emt 0:00:05]} d6 {[%emt 0:00:00]} 7. Bg5 {[%emt 0:00:05]} a6 {[%emt 0:00:00]} 8. Na3 {[%emt 0:00:08]} b5 {[%emt 0:00:01]} 9. Nd5 {[%emt 0:00:07]} Be7 {[%emt 0:00:04]} 10. Bxf6 {[%emt 0:00:08]} Bxf6 {[%emt 0:00:04]} 11. c4 {[%emt 0:00:13]} b4 {[%emt 0:00:03]} 12. Nc2 {[%emt 0:00:06]} O-O {[%emt 0:00:07]} 13. g3 {[%emt 0:01:04]} a5 {[%emt 0:00:11]} 14. Qf3 {[%emt 0:02:08]} Bg5 {[%emt 0:01:26]} 15. h4 {[%emt 0:00:14]} Bh6 {[%emt 0:01:14]} 16. Bh3 {[%emt 0:02:13]} Be6 {[%emt 0:01:35]} 17. Rd1 {[%emt 0:05:19]} a4 {[%emt 0:04:33]} 18. Kf1 {[%emt 0:02:39]} Qb8 {[%emt 0:04:28]} 19. b3 {[%emt 0:04:49]} axb3 $11 {[%emt 0:00:45]} 20. axb3 {[%emt 0:00:17]} Ra2 {[%emt 0:01:59]} 21. Qd3 {[%emt 0:00:45]} Qa7 {[%emt 0:08:37]} 22. Kg2 {[%emt 0:08:57]} Bxd5 {[%emt 0:03:25]} 23. exd5 {[%emt 0:01:11]} Ne7 {[%emt 0:01:16]} 24. Ra1 {[%emt 0:02:04]} Rxa1 {[%emt 0:02:55]} 25. Rxa1 {[%emt 0:01:42]} Qc5 {[%emt 0:00:02]} 26. Ra4 {[%emt 0:08:07]} f5 {[%emt 0:03:06]} 27. Rxb4 {[%emt 0:18:10]} f4 {[%emt 0:03:14]} 28. Be6+ {[%emt 0:06:32]} Kh8 {[%emt 0:00:10]} 29. gxf4 {[%emt 0:04:19]} Ng6 {[%emt 0:02:45]} 30. Kg1 {[%emt 0:05:37]} Nxf4 {[%emt 0:02:03]} 31. Qf1 {[%emt 0:05:09]} Qa7 {[%emt 0:03:37]} 32. Ne1 {[%emt 0:04:33]} Qa1 {[%emt 0:06:10]} 33. Rb7 {[%emt 0:03:36]} Qb1 {[%emt 0:01:34]} 34. Ng2 {[%emt 0:06:22]} Ne2+ {[%emt 0:00:18]} 0-1

[Event "CZE-ch 2020"]
[Site "Pilsen"]
[Date "2020.08.29"]
[Round "7.34"]
[White "Janous, Marek"]
[Black "Kopriva, Martin"]
[Result "1/2-1/2"]
[ECO "B06"]
[WhiteElo "1968"]
[BlackElo "2079"]
[Annotator "ChessBase"]
[PlyCount "82"]
[EventDate "2020.08.23"]
[EventType "swiss"]
[EventCountry "CZE"]
[SourceTitle "playchess.com"]
[Source "ChessBase"]
[SourceQuality "1"]
[TimeControl "40/5400+30:1800+30"]

1. e4 {[%emt 0:00:00]} g6 {[%emt 0:00:00]} 2. d4 {[%emt 0:00:00]} Bg7 {[%emt 0:00:00]} 3. Nc3 {[%emt 0:00:00]} d6 {[%emt 0:00:00]} 4. Nf3 {[%emt 0:00:00]} a6 {[%emt 0:04:22]} 5. a4 {[%emt 0:00:18]} Nf6 {[%emt 0:00:47]} 6. h3 {[%emt 0:00:19]} O-O {[%emt 0:00:18]} 7. Be2 {[%emt 0:00:47]} b6 {[%emt 0:02:15]} 8. O-O {[%emt 0:16:20]} Bb7 {[%emt 0:01:46]} 9. Bd3 {[%emt 0:09:19]} Nbd7 {[%emt 0:01:37]} 10. Re1 {[%emt 0:08:42]} e5 {[%emt 0:01:56]} 11. dxe5 {[%emt 0:00:16]} dxe5 {[%emt 0:04:16]} 12. Bg5 {[%emt 0:04:07]} h6 {[%emt 0:06:34]} 13. Bxf6 {[%emt 0:00:23]} Bxf6 {[%emt 0:03:29]} 14. Bc4 {[%emt 0:00:42]} Nc5 {[%emt 0:15:52]} 15. Qe2 {[%emt 0:10:15]} c6 {[%emt 0:04:05]} 16. Qe3 {[%emt 0:05:21]} Kg7 {[%emt 0:04:09]} 17. a5 {[%emt 0:04:02]} Nd7 {[%emt 0:04:03]} 18. axb6 {[%emt 0:02:02]} Qxb6 {[%emt 0:01:49]} 19. Na4 {[%emt 0:08:13]} Qc7 {[%emt 0:04:11]} 20. Nc5 {[%emt 0:02:26]} Nxc5 {[%emt 0:03:31]} 21. Qxc5 {[%emt 0:00:06]} a5 {[%emt 0:06:18]} 22. Ra4 {[%emt 0:02:33]} Ba6 {[%emt 0:01:24]} 23. Bxa6 {[%emt 0:00:15]} Rxa6 {[%emt 0:00:10]} 24. Rea1 {[%emt 0:00:44]} Rfa8 {[%emt 0:02:16]} 25. Qc3 {[%emt 0:11:43]} Qb7 {[%emt 0:07:06]} 26. Nd2 {[%emt 0:01:42]} Bd8 {[%emt 0:01:50]} 27. Nc4 {[%emt 0:03:35]} f6 {[%emt 0:00:27]} 28. b3 {[%emt 0:00:43]} Bb6 {[%emt 0:01:01]} 29. Nxb6 {[%emt 0:01:32]} Qxb6 {[%emt 0:00:11]} 30. Rd1 {[%emt 0:02:35]} Rd8 {[%emt 0:05:15]} 31. Rd3 {[%emt 0:01:11]} h5 {[%emt 0:04:13]} 32. Rxd8 {[%emt 0:02:43]} Qxd8 {[%emt 0:00:08]} 33. Qc5 {[%emt 0:00:04]} Qd1+ {[%emt 0:04:50]} 34. Kh2 {[%emt 0:00:05]} g5 {[%emt 0:02:01]} 35. Qe7+ {[%emt 0:02:08]} Kg6 {[%emt 0:00:02]} 36. Qe8+ {[%emt 0:00:19]} Kg7 {[%emt 0:01:15]} 37. Qe7+ {[%emt 0:01:00]} Kg6 {[%emt 0:00:08]} 38. Rc4 {[%emt 0:00:37]} Qd2 {[%emt 0:00:57]} 39. Qe8+ {[%emt 0:01:07]} Kg7 {[%emt 0:01:03]} 40. Qe7+ {[%emt 0:00:47]} Kg6 {[%emt 0:00:28]} 41. Qe8+ {[%emt 0:05:43]} Kg7 {[%emt 0:00:27]} 1/2-1/2

[Event "CZE-ch 2020"]
[Site "Pilsen"]
[Date "2020.08.29"]
[Round "7.36"]
[White "Malinovsky, Petr"]
[Black "Taus, Martin"]
[Result "0-1"]
[ECO "A40"]
[WhiteElo "2081"]
[BlackElo "2142"]
[Annotator "NA"]
[PlyCount "48"]
[EventDate "2020.08.23"]
[EventType "swiss"]
[EventCountry "CZE"]
[SourceTitle "playchess.com"]
[Source "ChessBase"]
[SourceQuality "1"]
[TimeControl "40/5400+30:1800+30"]

1. d4 {[%emt 0:00:00]} e6 {[%emt 0:00:00]} 2. c4 {[%emt 0:00:05]} f5 {[%emt 0:00:00]} 3. e3 {[%emt 0:02:32]} Nf6 {[%emt 0:00:15]} 4. Bd3 {[%emt 0:02:02]} b6 {[%emt 0:00:22]} 5. Nc3 {[%emt 0:02:03]} Bb4 {[%emt 0:00:14]} 6. Nge2 {[%emt 0:00:50] A84: Dutch Defence: 2 c4 Miscellaneous.} Bb7 {[%emt 0:00:17]} 7. O-O {[%emt 0:00:30]} O-O {[%emt 0:02:01]} 8. a3 {[%emt 0:03:18]} Bd6 {[%emt 0:02:26]} 9. f3 {[%emt 0:02:12]} Nc6 {[%emt 0:06:20]} 10. b4 {[%emt 0:02:17]} a5 {[%emt 0:00:22]} 11. b5 {[%emt 0:06:35]} Ne7 {[%emt 0:01:25] [#]} 12. e4 $146 {[%emt 0:00:59]} ({Predecessor:} 12. Bb2 Ng6 13. Qe1 Nh5 14. Qf2 Qg5 15. Bc1 Qe7 16. Na4 e5 17. Bc2 Rae8 18. d5 {1-0 (83) Vasilevich,T (2393)-Kalinitschew,S (2516) Leutersdorf 2005}) 12... fxe4 {[%emt 0:00:49]} 13. fxe4 {[%emt 0:03:16]} e5 {[%emt 0:00:26]} 14. d5 $2 {[%emt 0:04:49]} (14. Na4 $11 {and White stays safe.} exd4 15. Bf4) 14... Bc5+ {[%emt 0:01:24]} 15. Kh1 {[%emt 0:00:16]} Ng4 {[%emt 0:00:07]} 16. h3 {[%emt 0:06:05]} Rxf1+ {[%emt 0:02:57]} 17. Qxf1 {[%emt 0:00:08]} Nf2+ {[%emt 0:00:05]} 18. Kh2 {[%emt 0:00:24]} Nxd3 {[%emt 0:00:06]} 19. Bd2 $19 {[%emt 0:04:23]} Ng6 {[%emt 0:05:29]} 20. Qf3 {[%emt 0:07:24]} Nb2 {[%emt 0:10:06]} 21. Be3 {[%emt 0:24:40]} Qf6 {[%emt 0:08:34]} 22. Qg3 {[%emt 0:02:24]} Qh4 {[%emt 0:00:53]} 23. Qxh4 {[%emt 0:01:14]} Nxh4 {[%emt 0:00:04]} 24. Rc1 {[%emt 0:01:01]} Bxe3 {[%emt 0:00:07]} 0-1

[Event "CZE-ch 2020"]
[Site "Pilsen"]
[Date "2020.08.29"]
[Round "7.37"]
[White "Babula ml., Vlastimil"]
[Black "Benes, Miroslav"]
[Result "1-0"]
[ECO "C50"]
[WhiteElo "2138"]
[BlackElo "2011"]
[Annotator "NA"]
[PlyCount "53"]
[EventDate "2020.08.23"]
[EventType "swiss"]
[EventCountry "CZE"]
[SourceTitle "playchess.com"]
[Source "ChessBase"]
[SourceQuality "1"]
[TimeControl "40/5400+30:1800+30"]

1. e4 {[%emt 0:00:00]} e5 {[%emt 0:00:21]} 2. Nf3 {[%emt 0:00:00]} Nc6 {[%emt 0:00:10]} 3. Bc4 {[%emt 0:00:17]} Nf6 {[%emt 0:00:07]} 4. d3 {[%emt 0:00:34]} Bc5 {[%emt 0:00:48]} 5. O-O {[%emt 0:00:27]} a6 {[%emt 0:02:06]} 6. c3 {[%emt 0:02:42]} d6 {[%emt 0:00:47]} 7. d4 {[%emt 0:19:09]} exd4 {[%emt 0:02:14]} 8. cxd4 {[%emt 0:00:03]} Ba7 {[%emt 0:00:45]} 9. Nc3 {[%emt 0:01:03]} Bg4 {[%emt 0:07:30]} 10. Be3 $11 {[%emt 0:01:11]} O-O {[%emt 0:00:23]} 11. Bb3 {[%emt 0:01:48]} Qd7 {[%emt 0:14:16]} 12. Kh1 {[%emt 0:01:29]} Na5 {[%emt 0:01:45]} 13. Bc2 {[%emt 0:01:43]} Nc4 {[%emt 0:04:37]} 14. h3 {[%emt 0:07:29]} Nxe3 {[%emt 0:00:38]} 15. fxe3 {[%emt 0:00:09]} Bh5 {[%emt 0:03:31]} 16. Qe1 {[%emt 0:07:01]} Bxf3 {[%emt 0:02:18]} 17. Rxf3 {[%emt 0:00:10]} Qe7 {[%emt 0:02:46]} 18. Qg3 {[%emt 0:02:12]} c6 {[%emt 0:01:23]} 19. Raf1 {[%emt 0:01:48]} Nh5 {[%emt 0:02:53]} 20. Qg4 {[%emt 0:01:28]} g6 {[%emt 0:00:14]} 21. Bb3 {[%emt 0:02:11]} d5 {[%emt 0:05:47]} 22. exd5 {[%emt 0:03:18]} c5 {[%emt 0:00:45]} 23. dxc5 {[%emt 0:05:06]} Bxc5 {[%emt 0:00:38]} 24. d6 {[%emt 0:06:27]} Bxd6 {[%emt 0:00:30]} 25. Rxf7 {[%emt 0:01:20]} Rxf7 {[%emt 0:01:22]} 26. Rxf7 {[%emt 0:01:19]} Ng3+ {[%emt 0:00:34]} 27. Qxg3 {[%emt 0:00:10]} 1-0

[Event "CZE-ch 2020"]
[Site "Pilsen"]
[Date "2020.08.30"]
[Round "8.5"]
[White "Hollan, Martin"]
[Black "Malinovsky, Karel"]
[Result "0-1"]
[ECO "A06"]
[WhiteElo "2346"]
[BlackElo "2474"]
[Annotator "ChessBase"]
[PlyCount "62"]
[EventDate "2020.08.23"]
[EventType "swiss"]
[EventCountry "CZE"]
[SourceTitle "playchess.com"]
[Source "ChessBase"]
[SourceQuality "1"]
[TimeControl "40/5400+30:1800+30"]

1. c4 {[%emt 0:00:00]} e6 {[%emt 0:00:00]} 2. Nf3 {[%emt 0:00:00]} d5 {[%emt 0:00:00]} 3. e3 {[%emt 0:00:00]} Nf6 {[%emt 0:00:07]} 4. b3 {[%emt 0:00:00]} c5 {[%emt 0:00:39]} 5. Bb2 {[%emt 0:00:15]} Nc6 {[%emt 0:00:20]} 6. cxd5 {[%emt 0:00:23]} exd5 {[%emt 0:00:10]} 7. Nc3 {[%emt 0:00:09]} d4 {[%emt 0:05:03]} 8. Na4 {[%emt 0:00:11]} Bd6 {[%emt 0:09:16]} 9. exd4 {[%emt 0:06:19]} cxd4 {[%emt 0:01:32]} 10. Nxd4 {[%emt 0:06:15]} Nxd4 {[%emt 0:02:55]} 11. Bxd4 {[%emt 0:00:16]} O-O {[%emt 0:00:07]} 12. Be2 {[%emt 0:01:27]} Nd5 {[%emt 0:07:18]} 13. g3 {[%emt 0:18:21]} Bh3 {[%emt 0:06:07]} 14. Bg4 {[%emt 0:02:43]} Qe7+ {[%emt 0:20:41]} 15. Be3 {[%emt 0:00:31]} Bg2 {[%emt 0:00:46]} 16. Rg1 {[%emt 0:00:56]} Be4 {[%emt 0:02:05]} 17. Bf3 {[%emt 0:22:06]} Rad8 {[%emt 0:05:55]} 18. Bxe4 {[%emt 0:13:41]} Qxe4 {[%emt 0:00:53]} 19. Rc1 {[%emt 0:00:15]} Bb4 {[%emt 0:07:01]} 20. Qc2 {[%emt 0:10:14]} Qf3 {[%emt 0:09:27]} 21. Qd1 {[%emt 0:00:39]} Qf5 {[%emt 0:00:55]} 22. g4 {[%emt 0:14:50]} Qe5 {[%emt 0:01:18]} 23. Rg3 {[%emt 0:00:14]} Nxe3 {[%emt 0:00:46]} 24. Rxe3 {[%emt 0:00:04]} Qxh2 {[%emt 0:00:17]} 25. Nc3 {[%emt 0:02:08]} Bc5 {[%emt 0:01:15]} 26. Qe2 {[%emt 0:00:30]} Bxe3 {[%emt 0:00:56]} 27. dxe3 {[%emt 0:00:26]} Qg1+ {[%emt 0:00:10]} 28. Qf1 {[%emt 0:00:04]} Qxg4 {[%emt 0:00:07]} 29. Qc4 {[%emt 0:00:57]} Qg1+ {[%emt 0:00:29]} 30. Qf1 {[%emt 0:00:04]} Qxf1+ {[%emt 0:00:05]} 31. Kxf1 {[%emt 0:00:03]} Rc8 {[%emt 0:00:06]} 0-1

[Event "CZE-ch 2020"]
[Site "Pilsen"]
[Date "2020.08.30"]
[Round "8.6"]
[White "Michalik, Peter"]
[Black "Kozusek, Daniel"]
[Result "1/2-1/2"]
[ECO "B45"]
[WhiteElo "2593"]
[BlackElo "2307"]
[Annotator "ChessBase"]
[PlyCount "88"]
[EventDate "2020.08.23"]
[EventType "swiss"]
[EventCountry "CZE"]
[SourceTitle "playchess.com"]
[Source "ChessBase"]
[SourceQuality "1"]
[TimeControl "40/5400+30:1800+30"]

1. e4 {[%emt 0:00:00]} c5 {[%emt 0:00:00]} 2. Nc3 {[%emt 0:00:00]} e6 {[%emt 0:00:00]} 3. Nf3 {[%emt 0:00:00]} Nc6 {[%emt 0:00:00]} 4. d4 {[%emt 0:00:03]} cxd4 {[%emt 0:00:00]} 5. Nxd4 {[%emt 0:00:05]} Nf6 {[%emt 0:00:00]} 6. Nxc6 {[%emt 0:00:28]} bxc6 {[%emt 0:00:02]} 7. e5 {[%emt 0:00:07]} Nd5 {[%emt 0:00:04]} 8. Ne4 {[%emt 0:00:08]} Bb7 {[%emt 0:00:33]} 9. Be2 {[%emt 0:01:29]} c5 {[%emt 0:01:05]} 10. O-O {[%emt 0:01:22]} Qc7 {[%emt 0:02:01]} 11. Nd6+ {[%emt 0:00:29]} Bxd6 {[%emt 0:00:07]} 12. exd6 {[%emt 0:00:03]} Qb6 {[%emt 0:01:03]} 13. c4 {[%emt 0:05:58]} Nb4 {[%emt 0:00:13]} 14. Be3 {[%emt 0:02:37]} Nc6 {[%emt 0:09:00]} 15. b4 {[%emt 0:06:12]} Nxb4 {[%emt 0:03:42]} 16. a3 {[%emt 0:03:17]} Nc6 {[%emt 0:00:55]} 17. Rb1 {[%emt 0:00:22]} Qa6 {[%emt 0:00:53]} 18. Bxc5 {[%emt 0:00:24]} O-O {[%emt 0:10:49]} 19. Rb5 {[%emt 0:01:19]} Nd8 {[%emt 0:03:14]} 20. Bb4 {[%emt 0:25:33]} Bc6 {[%emt 0:02:50]} 21. Rg5 {[%emt 0:00:13]} f6 {[%emt 0:06:16]} 22. Rg3 {[%emt 0:00:15]} e5 {[%emt 0:08:26]} 23. Bd3 {[%emt 0:14:37]} Ne6 {[%emt 0:03:52]} 24. Qb1 {[%emt 0:01:57]} e4 {[%emt 0:04:42]} 25. Bxe4 {[%emt 0:00:08]} Bxe4 {[%emt 0:00:04]} 26. Qxe4 {[%emt 0:00:05]} Rac8 {[%emt 0:00:49]} 27. Rc1 {[%emt 0:04:32]} Rc6 {[%emt 0:02:49]} 28. Rgc3 {[%emt 0:05:25]} Qa4 {[%emt 0:01:57]} 29. Qd5 {[%emt 0:00:48]} Ra8 {[%emt 0:08:22]} 30. Qb5 {[%emt 0:01:45]} Qa6 {[%emt 0:00:07]} 31. h3 {[%emt 0:06:01]} Qc8 {[%emt 0:02:42]} 32. Rd3 {[%emt 0:01:31]} a5 {[%emt 0:01:42]} 33. Be1 {[%emt 0:04:43]} Rc5 {[%emt 0:13:19]} 34. Qb3 {[%emt 0:00:56]} Qc6 {[%emt 0:01:43]} 35. Bd2 {[%emt 0:00:46]} Rc8 {[%emt 0:03:34]} 36. Rd5 {[%emt 0:00:39]} a4 {[%emt 0:02:36]} 37. Qb4 {[%emt 0:03:52]} Rxc4 {[%emt 0:02:21]} 38. Rxc4 {[%emt 0:00:09]} Qxc4 {[%emt 0:00:03]} 39. Qxc4 {[%emt 0:00:10]} Rxc4 {[%emt 0:00:05]} 40. Ra5 {[%emt 0:00:35]} Kf7 {[%emt 0:03:40]} 41. Ra7 {[%emt 0:35:41]} Nc5 {[%emt 0:31:01]} 42. Be3 {[%emt 0:00:14]} Ke6 {[%emt 0:00:26]} 43. Bxc5 {[%emt 0:00:07]} Rxc5 {[%emt 0:00:14]} 44. Rxa4 {[%emt 0:00:08]} Rc1+ {[%emt 0:00:09]} 1/2-1/2